[Event "MČR juniorů a juniorek v rapid šachu 2023"]
[Site "Czech Republic"]
[Date "2023.09.23"]
[Round "1.27"]
[White "Krajicek, Matthew"]
[Black "Rybacek, Martin"]
[Result "0-1"]
[TimeControl "20 min + 5 sec per move"]
[WhiteFideId "23740175"]
[BlackFideId "23739266"]
[WhiteElo "1283"]
[BlackElo "1755"]

1. d4 {[%clk 00:20:08]} {[%emt 00:00:01]} Nf6 {[%clk 00:20:08]} {[%emt
00:00:02]} 2. Bf4 {[%clk 00:20:12]} {[%emt 00:00:01]} d5 {[%clk 00:19:43]}
{[%emt 00:00:30]} 3. Nf3 {[%clk 00:20:10]} {[%emt 00:00:07]} g6 {[%clk
00:19:43]} {[%emt 00:00:06]} 4. e3 {[%clk 00:19:58]} {[%emt 00:00:17]} Bg7
{[%clk 00:19:24]} {[%emt 00:00:23]} 5. Bd3 {[%clk 00:19:54]} {[%emt 00:00:09]}
O-O {[%clk 00:18:56]} {[%emt 00:00:34]} 6. O-O {[%clk 00:19:23]} {[%emt
00:00:36]} c5 {[%clk 00:18:51]} {[%emt 00:00:09]} 7. c3 {[%clk 00:19:23]}
{[%emt 00:00:05]} Nc6 {[%clk 00:18:08]} {[%emt 00:00:48]} 8. Nbd2 {[%clk
00:18:58]} {[%emt 00:00:30]} Nd7 {[%clk 00:16:29]} {[%emt 00:01:44]} 9. Re1
{[%clk 00:17:24]} {[%emt 00:01:39]} e5 {[%clk 00:15:46]} {[%emt 00:00:49]} 10.
dxe5 {[%clk 00:16:11]} {[%emt 00:01:18]} Ndxe5 {[%clk 00:15:48]} {[%emt
00:00:02]} 11. Nxe5 {[%clk 00:16:07]} {[%emt 00:00:10]} Nxe5 {[%clk 00:15:52]}
12. Bc2 {[%clk 00:15:06]} {[%emt 00:01:05]} Bg4 {[%clk 00:13:55]} {[%emt
00:02:02]} 13. f3 {[%clk 00:14:32]} {[%emt 00:00:40]} Be6 {[%clk 00:13:47]}
{[%emt 00:00:13]} 14. e4 {[%clk 00:13:06]} {[%emt 00:01:31]} d4 {[%clk
00:13:09]} {[%emt 00:00:42]} 15. cxd4 {[%clk 00:12:10]} {[%emt 00:01:01]} Qxd4+
{[%clk 00:12:31]} {[%emt 00:00:43]} 16. Be3 {[%clk 00:08:44]} {[%emt 00:03:31]}
Qxb2 {[%clk 00:12:06]} {[%emt 00:00:30]} 17. Rb1 {[%clk 00:06:46]} {[%emt
00:02:03]} Qxa2 {[%clk 00:10:54]} {[%emt 00:01:17]} 18. Rxb7 {[%clk 00:06:21]}
{[%emt 00:00:31]} Rab8 {[%clk 00:08:01]} {[%emt 00:02:58]} 19. Rxb8 {[%clk
00:05:26]} {[%emt 00:01:00]} Rxb8 {[%clk 00:08:05]} {[%emt 00:00:01]} 20. Bxc5
{[%clk 00:04:07]} {[%emt 00:01:23]} Rb2 {[%clk 00:07:26]} {[%emt 00:00:44]} 0-1

[Event "MČR juniorů a juniorek v rapid šachu 2023"]
[Site "Czech Republic"]
[Date "2023.09.23"]
[Round "1.29"]
[White "Macova, Marketa"]
[Black "Strnadova, Monika"]
[Result "0-1"]
[TimeControl "20 min + 5 sec per move"]
[WhiteFideId "23715588"]
[BlackFideId "23701668"]
[WhiteElo "1228"]
[BlackElo "1728"]

1. e4 {[%clk 00:20:09]} c5 {[%clk 00:20:09]} {[%emt 00:00:02]} 2. Nf3 {[%clk
00:20:12]} {[%emt 00:00:01]} Nc6 {[%clk 00:20:13]} {[%emt 00:00:02]} 3. Bc4
{[%clk 00:20:13]} {[%emt 00:00:04]} g6 {[%clk 00:20:15]} {[%emt 00:00:03]} 4.
Nc3 {[%clk 00:20:15]} {[%emt 00:00:03]} Bg7 {[%clk 00:20:18]} {[%emt 00:00:01]}
5. d3 {[%clk 00:20:13]} {[%emt 00:00:07]} Nf6 {[%clk 00:20:21]} {[%emt
00:00:02]} 6. Bg5 {[%clk 00:20:15]} O-O {[%clk 00:20:23]} {[%emt 00:00:05]} 7.
O-O {[%clk 00:20:18]} d6 {[%clk 00:20:01]} {[%emt 00:00:30]} 8. h3 {[%clk
00:19:10]} {[%emt 00:01:13]} Bd7 {[%clk 00:19:59]} {[%emt 00:00:08]} 9. Re1
{[%clk 00:18:57]} {[%emt 00:00:18]} a6 {[%clk 00:19:51]} {[%emt 00:00:13]} 10.
a4 {[%clk 00:18:44]} {[%emt 00:00:17]} Rc8 {[%clk 00:19:00]} {[%emt 00:00:56]}
11. Qe2 {[%clk 00:17:58]} {[%emt 00:00:51]} Ne8 {[%clk 00:17:17]} {[%emt
00:01:49]} 12. Qd2 {[%clk 00:16:27]} {[%emt 00:01:35]} Nf6 {[%clk 00:13:51]}
{[%emt 00:03:31]} 13. Bh6 {[%clk 00:15:19]} {[%emt 00:01:12]} Nd4 {[%clk
00:12:41]} {[%emt 00:01:16]} 14. Nh4 {[%clk 00:11:43]} {[%emt 00:03:40]} Bxh6
{[%clk 00:08:21]} {[%emt 00:04:25]} 15. Qxh6 {[%clk 00:11:04]} {[%emt
00:00:44]} Be6 {[%clk 00:05:50]} {[%emt 00:02:36]} 16. Bxe6 {[%clk 00:10:19]}
{[%emt 00:00:50]} fxe6 {[%clk 00:05:51]} {[%emt 00:00:04]} 17. Rac1 {[%clk
00:10:11]} {[%emt 00:00:14]} Qe8 {[%clk 00:05:15]} {[%emt 00:00:40]} 18. e5
{[%clk 00:07:04]} {[%emt 00:03:12]} dxe5 {[%clk 00:05:11]} {[%emt 00:00:09]} 19.
Rxe5 {[%clk 00:07:03]} {[%emt 00:00:06]} Qf7 {[%clk 00:05:13]} {[%emt
00:00:02]} 20. Qe3 {[%clk 00:05:52]} {[%emt 00:01:16]} b5 {[%clk 00:04:21]}
{[%emt 00:00:58]} 21. axb5 {[%clk 00:05:16]} {[%emt 00:00:41]} axb5 {[%clk
00:04:24]} {[%emt 00:00:01]} 22. Ne2 {[%clk 00:05:13]} {[%emt 00:00:08]} Nd5
{[%clk 00:04:18]} {[%emt 00:00:12]} 23. Rxd5 {[%clk 00:03:34]} {[%emt
00:01:44]} Nxe2+ {[%clk 00:04:19]} {[%emt 00:00:04]} 24. Qxe2 {[%clk 00:03:34]}
{[%emt 00:00:05]} exd5 {[%clk 00:04:22]} {[%emt 00:00:02]} 25. Re1 {[%clk
00:03:29]} {[%emt 00:00:09]} c4 {[%clk 00:03:40]} {[%emt 00:00:47]} 26. d4
{[%clk 00:03:11]} {[%emt 00:00:24]} Rc7 {[%clk 00:02:34]} {[%emt 00:01:11]} 27.
Nf3 {[%clk 00:03:05]} {[%emt 00:00:11]} Ra7 {[%clk 00:02:25]} {[%emt 00:00:14]}
28. Ne5 {[%clk 00:02:35]} {[%emt 00:00:34]} Qf6 {[%clk 00:02:17]} {[%emt
00:00:14]} 29. c3 {[%clk 00:01:52]} {[%emt 00:00:48]} Rfa8 {[%clk 00:02:04]}
{[%emt 00:00:17]} 30. g3 {[%clk 00:01:12]} {[%emt 00:00:45]} Ra1 {[%clk
00:01:37]} {[%emt 00:00:33]} 31. Kg2 {[%clk 00:01:03]} {[%emt 00:00:14]} Rxe1
{[%clk 00:01:36]} {[%emt 00:00:05]} 32. Qxe1 {[%clk 00:01:07]} {[%emt
00:00:02]} Ra2 {[%clk 00:01:17]} {[%emt 00:00:24]} 33. Qb1 {[%clk 00:01:03]}
{[%emt 00:00:08]} Ra6 {[%clk 00:01:14]} {[%emt 00:00:09]} 34. Qc2 {[%clk
00:00:48]} {[%emt 00:00:20]} Qf5 {[%clk 00:01:12]} {[%emt 00:00:06]} 35. Qe2
{[%clk 00:00:32]} {[%emt 00:00:21]} Qe4+ {[%clk 00:01:15]} {[%emt 00:00:02]} 36.
Qxe4 {[%clk 00:00:33]} {[%emt 00:00:05]} dxe4 {[%clk 00:01:18]} {[%emt
00:00:01]} 37. f3 {[%clk 00:00:23]} {[%emt 00:00:15]} exf3+ {[%clk 00:01:13]}
{[%emt 00:00:10]} 38. Kxf3 {[%clk 00:00:21]} {[%emt 00:00:07]} Ra2 {[%clk
00:01:17]} {[%emt 00:00:01]} 39. Ke4 {[%clk 00:00:15]} {[%emt 00:00:11]} Rxb2
{[%clk 00:01:20]} {[%emt 00:00:02]} 40. Ke3 {[%clk 00:00:16]} {[%emt 00:00:03]}
Kg7 {[%clk 00:01:07]} {[%emt 00:00:19]} 41. Nc6 {[%clk 00:00:11]} {[%emt
00:00:10]} Kf6 {[%clk 00:01:07]} {[%emt 00:00:04]} 42. g4 {[%clk 00:00:13]}
{[%emt 00:00:04]} Rh2 {[%clk 00:01:08]} {[%emt 00:00:04]} 43. h4 {[%clk
00:00:16]} {[%emt 00:00:02]} Rxh4 {[%clk 00:01:11]} {[%emt 00:00:02]} 44. g5+
{[%clk 00:00:20]} Kxg5 {[%clk 00:01:14]} {[%emt 00:00:02]} 45. Nxe7 {[%clk
00:00:21]} {[%emt 00:00:04]} Rh3+ {[%clk 00:01:07]} {[%emt 00:00:12]} 46. Kd2
{[%clk 00:00:24]} {[%emt 00:00:02]} Rd3+ {[%clk 00:01:09]} {[%emt 00:00:03]} 47.
Kc2 {[%clk 00:00:26]} {[%emt 00:00:03]} h5 {[%clk 00:01:11]} {[%emt 00:00:02]}
48. d5 {[%clk 00:00:19]} {[%emt 00:00:12]} h4 {[%clk 00:01:15]} {[%emt
00:00:01]} 49. d6 {[%clk 00:00:10]} {[%emt 00:00:15]} Rxd6 {[%clk 00:01:17]}
{[%emt 00:00:02]} 0-1

[Event "MČR juniorů a juniorek v rapid šachu 2023"]
[Site "Czech Republic"]
[Date "2023.09.23"]
[Round "1.31"]
[White "Zadrapova, Gabriela"]
[Black "Novotny, Dominik"]
[Result "0-1"]
[TimeControl "20 min + 5 sec per move"]
[WhiteFideId "23753056"]
[BlackFideId "23755601"]
[WhiteElo "1206"]
[BlackElo "1707"]

1. e4 {[%clk 00:20:07]} {[%emt 00:00:02]} c6 {[%clk 00:20:09]} {[%emt
00:00:02]} 2. d4 {[%clk 00:20:10]} {[%emt 00:00:03]} d5 {[%clk 00:20:12]}
{[%emt 00:00:01]} 3. exd5 {[%clk 00:20:12]} {[%emt 00:00:02]} cxd5 {[%clk
00:20:16]} {[%emt 00:00:02]} 4. Nc3 {[%clk 00:20:04]} {[%emt 00:00:12]} Nf6
{[%clk 00:20:06]} {[%emt 00:00:16]} 5. Nf3 {[%clk 00:19:58]} {[%emt 00:00:11]}
Nc6 {[%clk 00:19:44]} {[%emt 00:00:27]} 6. Bf4 {[%clk 00:19:34]} {[%emt
00:00:29]} a6 {[%clk 00:18:59]} {[%emt 00:00:51]} 7. Bd3 {[%clk 00:19:07]}
{[%emt 00:00:30]} Bg4 {[%clk 00:18:57]} {[%emt 00:00:07]} 8. Be2 {[%clk
00:17:16]} {[%emt 00:01:57]} e6 {[%clk 00:18:36]} {[%emt 00:00:25]} 9. O-O
{[%clk 00:16:59]} {[%emt 00:00:21]} Bd6 {[%clk 00:17:11]} {[%emt 00:01:32]} 10.
Bg3 {[%clk 00:16:47]} {[%emt 00:00:16]} O-O {[%clk 00:16:47]} {[%emt 00:00:30]}
11. Ne5 {[%clk 00:14:07]} {[%emt 00:02:44]} Bxe2 {[%clk 00:16:31]} {[%emt
00:00:22]} 12. Nxe2 {[%clk 00:13:55]} {[%emt 00:00:17]} Ne4 {[%clk 00:15:39]}
{[%emt 00:00:56]} 13. Nxc6 {[%clk 00:12:38]} {[%emt 00:01:22]} bxc6 {[%clk
00:15:38]} {[%emt 00:00:06]} 14. Qd3 {[%clk 00:11:42]} {[%emt 00:01:01]} Nxg3
{[%clk 00:13:49]} {[%emt 00:01:55]} 15. fxg3 {[%clk 00:11:32]} {[%emt
00:00:14]} Qb6 {[%clk 00:12:23]} {[%emt 00:01:33]} 16. b3 {[%clk 00:10:53]}
{[%emt 00:00:43]} c5 {[%clk 00:10:59]} {[%emt 00:01:29]} 17. c3 {[%clk
00:10:17]} {[%emt 00:00:41]} a5 {[%clk 00:09:49]} {[%emt 00:01:15]} 18. Rf2
{[%clk 00:09:26]} {[%emt 00:00:55]} a4 {[%clk 00:09:10]} {[%emt 00:00:46]} 19.
Rb1 {[%clk 00:07:56]} {[%emt 00:01:35]} Rab8 {[%clk 00:06:12]} {[%emt
00:03:02]} 20. Rff1 {[%clk 00:06:47]} {[%emt 00:01:14]} cxd4 {[%clk 00:04:22]}
{[%emt 00:01:55]} 21. cxd4 {[%clk 00:06:02]} {[%emt 00:00:50]} Qa5 {[%clk
00:03:54]} {[%emt 00:00:34]} 22. Qf3 {[%clk 00:05:11]} {[%emt 00:00:55]} axb3
{[%clk 00:03:07]} {[%emt 00:00:52]} 23. Rxb3 {[%clk 00:04:41]} {[%emt
00:00:34]} Qxa2 {[%clk 00:02:52]} {[%emt 00:00:22]} 24. Rxb8 {[%clk 00:04:32]}
{[%emt 00:00:13]} Bxb8 {[%clk 00:02:55]} {[%emt 00:00:02]} 25. Nf4 {[%clk
00:04:05]} {[%emt 00:00:30]} Bxf4 {[%clk 00:02:28]} {[%emt 00:00:34]} 26. Qxf4
{[%clk 00:04:06]} {[%emt 00:00:04]} Qc4 {[%clk 00:02:27]} {[%emt 00:00:06]} 27.
Rc1 {[%clk 00:03:57]} {[%emt 00:00:13]} Qd3 {[%clk 00:02:23]} {[%emt 00:00:10]}
28. Rf1 {[%clk 00:03:20]} {[%emt 00:00:41]} Qe4 {[%clk 00:02:14]} {[%emt
00:00:16]} 29. Qxe4 {[%clk 00:03:12]} {[%emt 00:00:12]} dxe4 {[%clk 00:02:18]}
{[%emt 00:00:01]} 30. Kf2 {[%clk 00:03:03]} {[%emt 00:00:13]} Rd8 {[%clk
00:01:56]} {[%emt 00:00:28]} 31. Ke3 {[%emt 00:00:04]} f5 {[%emt 00:00:01]} 32.
h3 {[%clk 00:03:01]} {[%emt 00:00:07]} Kf7 {[%clk 00:01:58]} {[%emt 00:00:08]}
33. g4 {[%clk 00:03:04]} {[%emt 00:00:02]} Kf6 {[%clk 00:01:57]} {[%emt
00:00:06]} 34. gxf5 {[%emt 00:00:07]} exf5 {[%emt 00:00:01]} 35. g4 {[%clk
00:02:59]} {[%emt 00:00:07]} g6 {[%clk 00:01:55]} {[%emt 00:00:12]} 36. gxf5
{[%clk 00:02:39]} {[%emt 00:00:25]} gxf5 {[%clk 00:01:59]} {[%emt 00:00:01]} 37.
Rd1 {[%clk 00:02:22]} {[%emt 00:00:22]} Rc8 {[%clk 00:01:36]} {[%emt 00:00:29]}
38. d5 {[%clk 00:02:10]} {[%emt 00:00:16]} Rc3+ {[%clk 00:01:23]} {[%emt
00:00:18]} 39. Kd4 {[%clk 00:02:12]} {[%emt 00:00:03]} Rxh3 {[%clk 00:01:26]}
{[%emt 00:00:02]} 40. d6 {[%clk 00:02:16]} Rd3+ {[%clk 00:01:15]} {[%emt
00:00:16]} 41. Rxd3 {[%clk 00:02:17]} {[%emt 00:00:05]} exd3 {[%clk 00:01:19]}
42. Kxd3 {[%clk 00:02:19]} {[%emt 00:00:02]} Ke6 {[%clk 00:01:23]} {[%emt
00:00:02]} 43. Ke3 {[%clk 00:02:20]} {[%emt 00:00:04]} h5 {[%clk 00:01:23]}
{[%emt 00:00:06]} 44. Kf3 {[%clk 00:02:17]} {[%emt 00:00:07]} Kxd6 {[%clk
00:01:23]} {[%emt 00:00:05]} 45. Kg2 {[%clk 00:02:17]} {[%emt 00:00:04]} Ke5
{[%clk 00:01:27]} {[%emt 00:00:02]} 46. Kg3 {[%clk 00:02:21]} {[%emt 00:00:01]}
Ke4 {[%clk 00:01:30]} {[%emt 00:00:02]} 47. Kh4 {[%clk 00:02:22]} {[%emt
00:00:04]} f4 {[%clk 00:01:33]} {[%emt 00:00:02]} 48. Kh3 {[%clk 00:02:16]}
{[%emt 00:00:10]} f3 {[%clk 00:01:33]} {[%emt 00:00:06]} 49. Kg3 {[%clk
00:02:20]} Ke3 {[%clk 00:01:37]} 50. Kh3 {[%clk 00:02:21]} {[%emt 00:00:03]}
Ke2 {[%clk 00:01:39]} {[%emt 00:00:04]} 51. Kg3 {[%clk 00:02:24]} {[%emt
00:00:02]} f2 {[%clk 00:01:42]} {[%emt 00:00:02]} 52. Kh4 {[%clk 00:02:22]}
{[%emt 00:00:07]} f1=Q {[%clk 00:01:42]} {[%emt 00:00:05]} 53. Kxh5 {[%clk
00:02:24]} {[%emt 00:00:03]} Qg2 {[%clk 00:01:45]} {[%emt 00:00:01]} 54. Kh6
{[%clk 00:02:26]} {[%emt 00:00:02]} Qg4 {[%clk 00:01:48]} {[%emt 00:00:02]} 55.
Kh7 {[%clk 00:02:29]} {[%emt 00:00:02]} Kf3 {[%clk 00:01:51]} {[%emt 00:00:02]}
56. Kh6 {[%clk 00:02:33]} {[%emt 00:00:01]} Kf4 {[%clk 00:01:55]} {[%emt
00:00:01]} 57. Kh7 {[%clk 00:02:36]} {[%emt 00:00:01]} Kf5 {[%clk 00:01:58]}
{[%emt 00:00:02]} 58. Kh8 {[%clk 00:02:33]} {[%emt 00:00:07]} Kf6 {[%clk
00:02:02]} {[%emt 00:00:02]} 59. Kh7 {[%clk 00:02:34]} {[%emt 00:00:04]} Qg7+
{[%emt 00:00:02]} 0-1

[Event "MČR juniorů a juniorek v rapid šachu 2023"]
[Site "Czech Republic"]
[Date "2023.09.23"]
[Round "1.32"]
[White "Zadrapa, Jakub"]
[Black "Hosova, Stella"]
[Result "1-0"]
[TimeControl "20 min + 5 sec per move"]
[WhiteFideId "23714778"]
[BlackFideId "23710489"]
[WhiteElo "1696"]
[BlackElo "1164"]

1. e4 {[%clk 00:20:08]} {[%emt 00:00:01]} c5 {[%clk 00:20:09]} {[%emt
00:00:02]} 2. Nf3 {[%clk 00:20:11]} {[%emt 00:00:02]} Nc6 {[%clk 00:20:13]} 3.
d4 {[%clk 00:20:15]} cxd4 {[%clk 00:20:16]} {[%emt 00:00:02]} 4. Nxd4 {[%clk
00:20:18]} {[%emt 00:00:02]} g6 {[%clk 00:20:05]} {[%emt 00:00:16]} 5. c4
{[%clk 00:20:10]} {[%emt 00:00:14]} Nf6 {[%clk 00:19:53]} {[%emt 00:00:16]} 6.
Nc3 {[%clk 00:20:10]} {[%emt 00:00:05]} Bg7 {[%clk 00:19:56]} {[%emt 00:00:02]}
7. Be3 {[%clk 00:20:08]} {[%emt 00:00:07]} O-O {[%clk 00:18:58]} {[%emt
00:01:03]} 8. Be2 {[%clk 00:19:38]} {[%emt 00:00:36]} Qb6 {[%clk 00:18:33]}
{[%emt 00:00:29]} 9. Qd2 {[%clk 00:16:04]} {[%emt 00:03:40]} Nxe4 {[%clk
00:15:33]} {[%emt 00:03:04]} 10. Nxe4 {[%clk 00:14:29]} {[%emt 00:01:40]} Bxd4
{[%clk 00:14:54]} {[%emt 00:00:45]} 11. Bxd4 {[%clk 00:13:35]} {[%emt
00:00:59]} Qxd4 {[%clk 00:13:40]} {[%emt 00:01:19]} 12. Qxd4 {[%clk 00:12:44]}
{[%emt 00:00:55]} Nxd4 {[%clk 00:13:43]} {[%emt 00:00:02]} 13. Rd1 {[%clk
00:12:18]} {[%emt 00:00:30]} Nxe2 {[%clk 00:13:23]} {[%emt 00:00:25]} 14. Kxe2
{[%clk 00:12:22]} {[%emt 00:00:02]} d6 {[%clk 00:13:26]} {[%emt 00:00:01]} 15.
Rd4 {[%clk 00:10:19]} {[%emt 00:02:07]} b6 {[%clk 00:13:03]} {[%emt 00:00:29]}
16. f3 {[%clk 00:10:03]} {[%emt 00:00:21]} f5 {[%clk 00:12:46]} {[%emt
00:00:22]} 17. Nc3 {[%clk 00:09:45]} {[%emt 00:00:23]} Be6 {[%clk 00:11:27]}
{[%emt 00:01:24]} 18. Re1 {[%clk 00:09:34]} {[%emt 00:00:17]} a6 {[%clk
00:11:21]} {[%emt 00:00:11]} 19. Kd2 {[%clk 00:08:29]} {[%emt 00:01:10]} Kf7
{[%clk 00:11:10]} {[%emt 00:00:15]} 20. b3 {[%clk 00:07:52]} {[%emt 00:00:42]}
Rfc8 {[%clk 00:10:59]} {[%emt 00:00:16]} 21. Rd3 {[%clk 00:07:37]} {[%emt
00:00:21]} Ra7 {[%clk 00:10:31]} {[%emt 00:00:33]} 22. Rde3 {[%clk 00:07:28]}
{[%emt 00:00:13]} Bxc4 {[%clk 00:09:38]} {[%emt 00:00:59]} 23. bxc4 {[%clk
00:07:17]} {[%emt 00:00:16]} Rxc4 {[%clk 00:09:41]} {[%emt 00:00:03]} 24. Kd3
{[%clk 00:06:21]} {[%emt 00:01:00]} Rac7 {[%clk 00:09:42]} {[%emt 00:00:04]} 25.
Rxe7+ {[%clk 00:06:22]} {[%emt 00:00:05]} Kf6 {[%clk 00:09:19]} {[%emt
00:00:27]} 26. Rxc7 {[%clk 00:06:25]} {[%emt 00:00:03]} Rxc7 {[%clk 00:09:23]}
{[%emt 00:00:01]} 27. Nd5+ {[%emt 00:01:05]} 1-0

[Event "MČR juniorů a juniorek v rapid šachu 2023"]
[Site "Czech Republic"]
[Date "2023.09.23"]
[Round "1.34"]
[White "Pejrimovsky, Tadeas Rubel"]
[Black "Martinkovicova, Nela"]
[Result "1-0"]
[TimeControl "20 min + 5 sec per move"]
[WhiteFideId "23709537"]
[BlackFideId "23715596"]
[WhiteElo "1679"]
[BlackElo "1049"]

1. e4 {[%clk 00:20:06]} {[%emt 00:00:03]} e5 {[%clk 00:19:51]} {[%emt
00:00:20]} 2. d4 {[%clk 00:20:09]} {[%emt 00:00:02]} exd4 {[%clk 00:19:25]}
{[%emt 00:00:30]} 3. Qxd4 {[%clk 00:20:12]} {[%emt 00:00:02]} Nc6 {[%clk
00:19:18]} {[%emt 00:00:13]} 4. Qe3 {[%clk 00:20:16]} {[%emt 00:00:01]} Be7
{[%clk 00:18:44]} {[%emt 00:00:38]} 5. Nc3 {[%clk 00:20:12]} {[%emt 00:00:09]}
d6 {[%clk 00:18:38]} {[%emt 00:00:11]} 6. Bd2 {[%clk 00:20:10]} {[%emt
00:00:06]} Be6 {[%clk 00:18:32]} {[%emt 00:00:13]} 7. O-O-O {[%clk 00:19:51]}
{[%emt 00:00:23]} Nb4 {[%clk 00:17:47]} {[%emt 00:00:50]} 8. a3 {[%clk
00:19:11]} {[%emt 00:00:46]} Nc6 {[%clk 00:17:24]} {[%emt 00:00:28]} 9. f4
{[%clk 00:17:21]} {[%emt 00:01:54]} Nf6 {[%clk 00:16:35]} {[%emt 00:00:54]} 10.
h3 {[%clk 00:17:24]} {[%emt 00:00:02]} Qd7 {[%clk 00:16:17]} {[%emt 00:00:24]}
11. g4 {[%clk 00:17:23]} {[%emt 00:00:06]} Qd8 {[%clk 00:13:57]} {[%emt
00:02:26]} 12. f5 {[%clk 00:15:23]} {[%emt 00:02:04]} Bd7 {[%clk 00:13:03]}
{[%emt 00:00:53]} 13. Nf3 {[%clk 00:15:19]} {[%emt 00:00:15]} g6 {[%clk
00:12:43]} {[%emt 00:00:25]} 14. Bc4 {[%emt 00:01:48]} Ne5 {[%clk 00:11:43]}
{[%emt 00:01:04]} 15. Ba2 {[%clk 00:10:05]} {[%emt 00:03:39]} Nxf3 {[%clk
00:10:07]} {[%emt 00:01:41]} 16. Qxf3 {[%clk 00:10:08]} {[%emt 00:00:01]} Bc6
{[%clk 00:09:32]} {[%emt 00:00:40]} 17. g5 {[%clk 00:09:56]} {[%emt 00:00:17]}
Nd7 {[%clk 00:07:23]} {[%emt 00:02:11]} 18. fxg6 {[%clk 00:09:46]} {[%emt
00:00:18]} Ne5 {[%clk 00:03:28]} {[%emt 00:04:01]} 19. gxf7+ {[%clk 00:09:49]}
{[%emt 00:00:03]} Kf8 {[%clk 00:02:48]} {[%emt 00:00:44]} 20. Qh5 {[%clk
00:09:48]} {[%emt 00:00:06]} h6 {[%clk 00:01:22]} {[%emt 00:01:32]} 21. Rhg1
{[%clk 00:07:37]} {[%emt 00:02:16]} Rh7 {[%clk 00:00:30]} {[%emt 00:00:57]} 22.
gxh6 {[%clk 00:07:31]} {[%emt 00:00:11]} Rh8 {[%clk 00:00:14]} {[%emt
00:00:20]} 23. Rg8+ {[%clk 00:07:29]} {[%emt 00:00:08]} Rxg8 {[%clk 00:00:16]}
{[%emt 00:00:03]} 24. fxg8=Q# {[%clk 00:07:31]} {[%emt 00:00:03]} 1-0